fUST/lending_fUST_20250819
["ID","MTS","AMOUNT","RATE_DAILY","PERIOD"]
[380128289,1755561044650,-480.0,0.00019178,2]
[380128290,1755561044659,-1598.88,0.00019178,2]
[380128291,1755561044668,-480.0,0.00019178,2]
[380128292,1755561044677,-480.0,0.00019178,2]
[380128293,1755561044686,-480.0,0.00019178,2]
[380128294,1755561044696,-480.0,0.00019178,2]
[380128295,1755561044705,-754.36,0.00019178,2]
[380128296,1755561044714,-585.77,0.00019178,2]
[380128297,1755561044723,-480.0,0.00019178,2]
[380128298,1755561044733,-480.0,0.00019178,2]
[380128299,1755561044743,-480.0,0.00019178,2]
[380128300,1755561044753,-2918.74,0.00019178,2]
[380128301,1755561044763,-205.05148537,0.00019178,2]
[380128302,1755561044772,-480.0,0.00019178,2]
[380128303,1755561044781,-750.87,0.00019178,2]
[380128304,1755561044791,-480.0,0.00019178,2]
[380128305,1755561044800,-2802.83,0.00019178,2]
[380128306,1755561044809,-1178.6,0.00019178,2]
[380128307,1755561044819,-628.91,0.00019178,2]
[380128308,1755561044828,-480.0,0.00019178,2]
[380128309,1755561044837,-480.0,0.00019178,2]
[380128310,1755561044846,-480.0,0.00019178,2]
[380128311,1755561044855,-480.0,0.00019178,2]
[380128312,1755561044875,-2110.25,0.00019178,2]
[380128313,1755561044887,-480.0,0.00019178,2]
[380128314,1755561044896,-595.78632833,0.00019178,2]
[380128315,1755561044906,-480.0,0.00019178,2]
[380128316,1755561044916,-480.0,0.00019178,2]
[380128317,1755561044926,-480.0,0.00019178,2]
[380128318,1755561044935,-480.0,0.00019178,2]
[380128319,1755561044945,-480.0,0.00019178,2]
[380128320,1755561044955,-480.0,0.00019178,2]
[380128321,1755561044964,-480.0,0.00019178,2]
[380128322,1755561044974,-480.0,0.00019178,2]
[380128323,1755561044983,-480.0,0.00019178,2]
[380128324,1755561044993,-480.0,0.00019178,2]
[380128325,1755561045002,-480.0,0.00019178,2]
[380128326,1755561045012,-1089.63,0.00019178,2]
[380128327,1755561045022,-1796.0,0.00019178,2]
[380128328,1755561045031,-480.0,0.00019178,2]
[380128329,1755561045040,-480.0,0.00019178,2]
[380128330,1755561045050,-480.0,0.00019178,2]
[380128331,1755561045060,-480.0,0.00019178,2]
[380128332,1755561045069,-480.0,0.00019178,2]
[380128333,1755561045078,-480.0,0.00019178,2]
[380128334,1755561045088,-480.0,0.00019178,2]
[380128335,1755561045097,-480.0,0.00019178,2]
[380128336,1755561045106,-2980.93,0.00019178,2]
[380128337,1755561045116,-480.0,0.00019178,2]
[380128338,1755561045125,-480.0,0.00019178,2]
[380128339,1755561045134,-573.28,0.00019178,2]
[380128340,1755561045144,-480.0,0.00019178,2]
[380128341,1755561045154,-480.0,0.00019178,2]
[380128342,1755561045164,-480.0,0.00019178,2]
[380128343,1755561045174,-540.44193766,0.00019178,2]
[380128344,1755561045184,-519.0,0.00019178,2]
[380128345,1755561045193,-480.0,0.00019178,2]
[380128346,1755561045203,-725.26,0.00019178,2]
[380128347,1755561045213,-480.0,0.00019178,2]
[380128348,1755561045223,-480.0,0.00019178,2]
[380128349,1755561045233,-1623.68,0.00019178,2]
[380128350,1755561045243,-480.0,0.00019178,2]
[380128351,1755561045252,-480.0,0.00019178,2]
[380128352,1755561045262,-565.68,0.00019178,2]
[380128353,1755561045271,-480.0,0.00019178,2]
[380128354,1755561045281,-1822.89,0.00019178,2]
[380128355,1755561045290,-480.0,0.00019178,2]
[380128356,1755561045299,-480.0,0.00019178,2]
[380128357,1755561045309,-576.7,0.00019178,2]
[380128358,1755561045318,-480.0,0.00019178,2]
[380128359,1755561045328,-480.0,0.00019178,2]
[380128360,1755561045337,-480.0,0.00019178,2]
[380128361,1755561045347,-480.0,0.00019178,2]
[380128362,1755561045357,-1437.08,0.00019178,2]
[380128363,1755561045366,-480.0,0.00019178,2]
[380128364,1755561045376,-619.87,0.00019178,2]
[380128365,1755561045385,-480.0,0.00019178,2]
[380128366,1755561045394,-480.0,0.00019178,2]
[380128367,1755561045403,-480.0,0.00019178,2]
[380128368,1755561045413,-480.0,0.00019178,2]
[380128369,1755561045423,-480.0,0.00019178,2]
[380128370,1755561045432,-480.0,0.00019178,2]
[380128371,1755561045442,-480.0,0.00019178,2]
[380128372,1755561045451,-480.0,0.00019178,2]
[380128373,1755561045461,-480.0,0.00019178,2]
[380128374,1755561045471,-1957.01,0.00019178,2]
[380128375,1755561045480,-748.3,0.00019178,2]
[380128376,1755561045492,-679.59,0.00019178,2]
[380128377,1755561045503,-1759.44,0.00019178,2]
[380128378,1755561045512,-480.0,0.00019178,2]
[380128379,1755561045521,-500.0,0.00019178,2]
[380128380,1755561045531,-224.72403876,0.00019242,2]
[380128381,1755561045540,-17842.522448,0.0001934,2]
[380128382,1755561045549,-683.57,0.00019342,3]
[380128383,1755561045559,-27891.24174587,0.00019352,2]
[380128384,1755561045585,-43110.0,0.00019352,2]
[380128394,1755561046287,-389.42375608,0.00019178,2]
[380128396,1755561046298,-90.57624392,0.00019178,2]
[380128398,1755561046307,-3250.43065787,0.00019273,2]
[380128399,1755561378390,200.0,0.00028767,120]
[380128400,1755561691271,200.0,0.00026381,120]
[380128401,1755561931125,-259.0,0.00018898,2]
[380128402,1755561931146,-23.63419851,0.00018898,2]
[380128403,1755561946415,252.139801,0.00013699,2]
[380128405,1755562026299,-300.0,0.00018897,2]
[380128406,1755562026322,-901.80722573,0.00018898,2]
[380128407,1755562046083,-274.55857576,0.00018898,2]
[380128408,1755562046105,-300.0,0.00018898,2]
[380128409,1755562046127,-96.57524942,0.00018898,2]
[380128415,1755562232615,-500.0,0.00018899,2]
[380128416,1755562232625,-500.0,0.00018899,2]
[380128417,1755562232635,-3938.43983901,0.000189,2]
[380128423,1755562238404,-883.56016099,0.000189,2]
[380128424,1755562238530,-221.85071535,0.00019067,2]
[380128425,1755562238540,-221.85071535,0.00019073,2]
[380128427,1755562238549,-1200.0,0.00019075,2]
[380128429,1755562238559,-300.0,0.00019076,2]
[380128431,1755562238568,-300.0,0.00019076,2]
[380128433,1755562238577,-300.0,0.00019076,2]
[380128435,1755562238587,-300.0,0.00019076,2]
[380128437,1755562238596,-4484.24318873,0.00019077,2]
[380128441,1755562238620,-1347.26159169,0.00019077,2]
[380128443,1755562238629,-500.0,0.00019077,2]
[380128445,1755562238639,-467.1849727,0.00019077,2]
[380128446,1755562238648,-264.76632904,0.00019077,2]
[380128447,1755562238657,-500.0,0.00019077,2]
[380128449,1755562238666,-3592.13406563,0.00019078,2]
[380128451,1755562238675,-157.41389289,0.00019078,2]
[380128453,1755562238684,-221.85071535,0.00019078,2]
[380128455,1755562238693,-72546.50051568,0.00019078,2]
[380128457,1755562238703,-17842.522448,0.00019166,2]
[380128459,1755562238712,-448.6925872,0.00019178,2]
[380128461,1755562238721,-480.0,0.00019178,2]
[380128463,1755562238731,-561.61,0.00019178,2]
[380128465,1755562238740,-480.0,0.00019178,2]
[380128467,1755562238749,-480.0,0.00019178,2]
[380128468,1755562238758,-480.0,0.00019178,2]
[380128469,1755562238767,-461.19761266,0.00019178,2]
[380128470,1755562238776,-434.1953514,0.00019178,2]
[380128471,1755562238787,-480.0,0.00019178,2]
[380128472,1755562238796,-480.0,0.00019178,2]
[380128473,1755562238805,-480.0,0.00019178,2]
[380128474,1755562238814,-460.0,0.00019178,2]
[380128475,1755562238823,-480.0,0.00019178,2]
[380128476,1755562238832,-480.0,0.00019178,2]
[380128477,1755562238841,-230.41885806,0.00019178,2]
[380128478,1755562238850,-480.0,0.00019178,2]
[380128479,1755562238859,-480.0,0.00019178,2]
[380128480,1755562238868,-480.0,0.00019178,2]
[380128481,1755562238877,-480.0,0.00019178,2]
[380128482,1755562238886,-480.0,0.00019178,2]
[380128483,1755562238896,-480.0,0.00019178,2]
[380128484,1755562238905,-157.51942593,0.00019178,2]
[380128485,1755562238914,-480.0,0.00019178,2]
[380128486,1755562238924,-480.0,0.00019178,2]
[380128487,1755562238933,-480.0,0.00019178,2]
[380128488,1755562238943,-480.0,0.00019178,2]
[380128489,1755562238952,-615.79121219,0.00019178,2]
[380128490,1755562238961,-480.0,0.00019178,2]
[380128491,1755562238971,-480.0,0.00019178,2]
[380128492,1755562238980,-283.16942035,0.00019178,2]
[380128493,1755562238989,-480.0,0.00019178,2]
[380128494,1755562238998,-604.34604772,0.00019178,2]
[380128495,1755562239007,-463.44041525,0.00019178,2]
[380128496,1755562239017,-462.23358971,0.00019178,2]
[380128497,1755562239025,-480.0,0.00019178,2]
[380128498,1755562239035,-480.0,0.00019178,2]
[380128499,1755562239045,-1895.47,0.00019178,2]
[380128500,1755562239055,-389.48293182,0.00019178,2]
[380128501,1755562239064,-480.0,0.00019178,2]
[380128502,1755562239076,-480.0,0.00019178,2]
[380128503,1755562239085,-602.38,0.00019178,2]
[380128504,1755562239095,-480.0,0.00019178,2]
[380128505,1755562239104,-480.0,0.00019178,2]
[380128506,1755562239114,-480.0,0.00019178,2]
[380128507,1755562239123,-480.0,0.00019178,2]
[380128508,1755562239132,-480.0,0.00019178,2]
[380128509,1755562239142,-480.0,0.00019178,2]
[380128510,1755562239151,-480.0,0.00019178,2]
[380128511,1755562239161,-480.0,0.00019178,2]
[380128513,1755562239172,-480.0,0.00019178,2]
[380128514,1755562239181,-533.22,0.00019178,2]
[380128516,1755562239191,-480.0,0.00019178,2]
[380128517,1755562239200,-480.0,0.00019178,2]
[380128518,1755562239209,-480.0,0.00019178,2]
[380128519,1755562239218,-480.0,0.00019178,2]
[380128520,1755562239227,-480.0,0.00019178,2]
[380128521,1755562239237,-480.0,0.00019178,2]
[380128522,1755562239246,-480.0,0.00019178,2]
[380128523,1755562239256,-460.0,0.00019178,2]
[380128524,1755562239265,-480.0,0.00019178,2]
[380128525,1755562239275,-480.0,0.00019178,2]
[380128526,1755562239284,-480.0,0.00019178,2]
[380128527,1755562239294,-480.0,0.00019178,2]
[380128528,1755562239303,-462.76007472,0.00019178,2]
[380128529,1755562239312,-480.0,0.00019178,2]
[380128530,1755562239322,-541.53450865,0.00019178,2]
[380128531,1755562239331,-480.0,0.00019178,2]
[380128532,1755562239551,-460.0,0.00019178,2]
[380128533,1755562239561,-480.0,0.00019178,2]
[380128534,1755562239570,-480.0,0.00019178,2]
[380128535,1755562239580,-480.0,0.00019178,2]
[380128536,1755562239589,-480.0,0.00019178,2]
[380128537,1755562239598,-480.0,0.00019178,2]
[380128538,1755562239607,-480.0,0.00019178,2]
[380128539,1755562239617,-480.0,0.00019178,2]
[380128540,1755562239626,-480.0,0.00019178,2]
[380128541,1755562239635,-462.97524982,0.00019178,2]
[380128542,1755562239644,-460.93270957,0.00019178,2]
[380128543,1755562239653,-480.0,0.00019178,2]
[380128544,1755562239662,-480.0,0.00019178,2]
[380128545,1755562239672,-480.0,0.00019178,2]
[380128546,1755562239681,-480.0,0.00019178,2]
[380128547,1755562239690,-480.0,0.00019178,2]
[380128548,1755562239700,-480.0,0.00019178,2]
[380128549,1755562239709,-480.0,0.00019178,2]
[380128550,1755562239718,-460.0,0.00019178,2]
[380128551,1755562239728,-480.0,0.00019178,2]
[380128552,1755562239737,-480.0,0.00019178,2]
[380128553,1755562239746,-480.0,0.00019178,2]
[380128554,1755562239755,-587.25,0.00019178,2]
[380128555,1755562239764,-480.0,0.00019178,2]
[380128556,1755562239774,-466.22661544,0.00019178,2]
[380128557,1755562239783,-480.0,0.00019178,2]
[380128558,1755562239793,-480.0,0.00019178,2]
[380128559,1755562239802,-460.0,0.00019178,2]
[380128560,1755562239811,-480.0,0.00019178,2]
[380128561,1755562239821,-460.72323671,0.00019178,2]
[380128562,1755562239830,-480.0,0.00019178,2]
[380128563,1755562239839,-480.0,0.00019178,2]
[380128564,1755562239848,-460.0,0.00019178,2]
[380128565,1755562239858,-480.0,0.00019178,2]
[380128566,1755562239868,-440.0,0.00019178,2]
[380128567,1755562239877,-480.0,0.00019178,2]
[380128568,1755562239886,-480.0,0.00019178,2]
[380128569,1755562239896,-480.0,0.00019178,2]
[380128570,1755562239905,-480.0,0.00019178,2]
[380128571,1755562239914,-460.0,0.00019178,2]
[380128572,1755562239924,-500.0,0.00019178,2]
[380128573,1755562239933,-500.0,0.00019178,2]
[380128574,1755562239943,-480.0,0.00019178,2]
[380128575,1755562239952,-480.0,0.00019178,2]
[380128576,1755562239961,-524.02,0.00019178,2]
[380128577,1755562239971,-480.0,0.00019178,2]
[380128578,1755562239980,-480.0,0.00019178,2]
[380128579,1755562239990,-480.0,0.00019178,2]
[380128581,1755562239999,-971.69,0.00019178,2]
[380128583,1755562240009,-480.0,0.00019178,2]
[380128585,1755562240019,-480.0,0.00019178,2]
[380128587,1755562240028,-574.64034321,0.00019178,2]
[380128588,1755562240037,-480.0,0.00019178,2]
[380128589,1755562240046,-612.73,0.00019178,2]
[380128590,1755562240055,-480.0,0.00019178,2]
[380128591,1755562240065,-480.0,0.00019178,2]
[380128592,1755562240077,-480.0,0.00019178,2]
[380128593,1755562240086,-460.0,0.00019178,2]
[380128594,1755562240095,-480.0,0.00019178,2]
[380128595,1755562240105,-480.0,0.00019178,2]
[380128596,1755562240116,-480.0,0.00019178,2]
[380128597,1755562240126,-4989.21,0.00019178,2]
[380128598,1755562240135,-421.12831416,0.00019178,2]
[380128599,1755562240147,-480.0,0.00019178,2]
[380128600,1755562240157,-480.0,0.00019178,2]
[380128601,1755562240166,-480.0,0.00019178,2]
[380128602,1755562240175,-480.0,0.00019178,2]
[380128603,1755562240185,-480.0,0.00019178,2]
[380128604,1755562240195,-491.28122231,0.00019178,2]
[380128605,1755562240204,-480.0,0.00019178,2]
[380128606,1755562240214,-480.0,0.00019178,2]
[380128607,1755562240223,-480.0,0.00019178,2]
[380128608,1755562240232,-480.0,0.00019178,2]
[380128609,1755562240242,-1686.13,0.00019178,2]
[380128610,1755562240252,-683.71,0.00019178,2]
[380128611,1755562240261,-480.0,0.00019178,2]
[380128612,1755562240270,-480.0,0.00019178,2]
[380128613,1755562240280,-480.0,0.00019178,2]
[380128614,1755562240291,-480.0,0.00019178,2]
[380128615,1755562240301,-480.0,0.00019178,2]
[380128616,1755562240310,-480.0,0.00019178,2]
[380128617,1755562240320,-480.0,0.00019178,2]
[380128618,1755562240329,-460.49376684,0.00019178,2]
[380128619,1755562240339,-480.0,0.00019178,2]
[380128620,1755562240348,-480.0,0.00019178,2]
[380128621,1755562240357,-480.0,0.00019178,2]
[380128622,1755562240367,-1532.26,0.00019178,2]
[380128623,1755562240376,-480.0,0.00019178,2]
[380128624,1755562240386,-480.0,0.00019178,2]
[380128625,1755562240395,-483.30269576,0.00019178,2]
[380128626,1755562240405,-480.0,0.00019178,2]
[380128627,1755562240415,-480.0,0.00019178,2]
[380128628,1755562240425,-508.55,0.00019178,2]
[380128629,1755562240434,-480.0,0.00019178,2]
[380128630,1755562240443,-463.61807244,0.00019178,2]
[380128631,1755562240454,-480.0,0.00019178,2]
[380128632,1755562240463,-690.45,0.00019178,2]
[380128633,1755562240472,-480.0,0.00019178,2]
[380128634,1755562240481,-480.0,0.00019178,2]
[380128635,1755562240490,-480.0,0.00019178,2]
[380128636,1755562240500,-431.76168523,0.00019178,2]
[380128637,1755562240509,-500.0,0.00019178,2]
[380128638,1755562240518,-500.0,0.00019178,2]
[380128639,1755562240527,-480.0,0.00019178,2]
[380128640,1755562240536,-500.0,0.00019178,2]
[380128641,1755562240546,-480.0,0.00019178,2]
[380128642,1755562240555,-480.0,0.00019178,2]
[380128643,1755562240563,-480.0,0.00019178,2]
[380128644,1755562240572,-4798.86,0.00019178,2]
[380128645,1755562240582,-480.0,0.00019178,2]
[380128646,1755562240592,-480.0,0.00019178,2]
[380128647,1755562240601,-500.0,0.00019178,2]
[380128648,1755562240611,-500.0,0.00019178,2]
[380128649,1755562240620,-500.0,0.00019178,2]
[380128650,1755562240629,-480.0,0.00019178,2]
[380128651,1755562240638,-480.0,0.00019178,2]
[380128652,1755562240648,-480.0,0.00019178,2]
[380128653,1755562240658,-480.0,0.00019178,2]
[380128654,1755562240667,-480.0,0.00019178,2]
[380128655,1755562240676,-480.0,0.00019178,2]
[380128656,1755562240686,-480.0,0.00019178,2]
[380128657,1755562240695,-322.29616032,0.00019178,7]
[380128658,1755562240704,-483.35009675,0.00019178,2]
[380128659,1755562240714,-720.67,0.00019178,2]
[380128660,1755562240725,-480.0,0.00019178,2]
[380128661,1755562240825,-779.53,0.00019178,2]
[380128662,1755562240835,-773.58,0.00019178,2]
[380128663,1755562240845,-480.0,0.00019178,2]
[380128664,1755562240854,-896.82,0.00019178,2]
[380128665,1755562240863,-480.0,0.00019178,2]
[380128666,1755562240873,-480.0,0.00019178,2]
[380128667,1755562240882,-480.0,0.00019178,2]
[380128668,1755562240891,-480.0,0.00019178,2]
[380128669,1755562240900,-480.0,0.00019178,2]
[380128670,1755562240909,-480.0,0.00019178,2]
[380128671,1755562240918,-480.0,0.00019178,2]
[380128672,1755562240928,-480.0,0.00019178,2]
[380128673,1755562240937,-480.0,0.00019178,2]
[380128674,1755562240947,-480.0,0.00019178,2]
[380128675,1755562240956,-480.0,0.00019178,2]
[380128676,1755562240965,-480.0,0.00019178,2]
[380128677,1755562240975,-480.0,0.00019178,2]
[380128678,1755562240984,-1766.5,0.00019178,2]
[380128679,1755562240993,-480.0,0.00019178,2]
[380128680,1755562241002,-480.0,0.00019178,2]
[380128681,1755562241012,-480.0,0.00019178,2]
[380128682,1755562241021,-480.0,0.00019178,2]
[380128683,1755562241030,-1377.2,0.00019178,2]
[380128684,1755562241039,-480.0,0.00019178,2]
[380128685,1755562241048,-480.0,0.00019178,2]
[380128686,1755562241057,-480.0,0.00019178,2]
[380128687,1755562241068,-729.5,0.00019178,2]
[380128688,1755562241079,-546.93,0.00019178,2]
[380128689,1755562241088,-596.10137762,0.00019178,2]
[380128690,1755562241097,-480.0,0.00019178,2]
[380128691,1755562241106,-480.0,0.00019178,2]
[380128692,1755562241116,-480.0,0.00019178,2]
[380128693,1755562241126,-480.0,0.00019178,2]
[380128694,1755562241135,-722.93,0.00019178,2]
[380128695,1755562241149,-480.0,0.00019178,2]
[380128696,1755562241168,-3187.65,0.00019178,2]
[380128697,1755562241178,-480.0,0.00019178,2]
[380128698,1755562241187,-480.0,0.00019178,2]
[380128699,1755562241197,-480.0,0.00019178,2]
[380128700,1755562241206,-480.0,0.00019178,2]
[380128701,1755562241216,-480.0,0.00019178,2]
[380128702,1755562241225,-1064.23,0.00019178,2]
[380128703,1755562241234,-2797.12,0.00019178,2]
[380128704,1755562241243,-480.0,0.00019178,2]
[380128705,1755562241252,-581.37,0.00019178,2]
[380128706,1755562241262,-314.3481359,0.00019178,2]
[380128707,1755562241271,-480.0,0.00019178,2]
[380128708,1755562241280,-642.71,0.00019178,2]
[380128709,1755562241289,-480.0,0.00019178,2]
[380128710,1755562241298,-317.14787522,0.00019178,2]
[380128711,1755562241308,-480.0,0.00019178,2]
[380128712,1755562241317,-380.0,0.00019178,2]
[380128713,1755562241327,-759.58,0.00019178,2]
[380128714,1755562241336,-2686.05,0.00019178,2]
[380128715,1755562241346,-480.0,0.00019178,2]
[380128716,1755562241355,-480.0,0.00019178,2]
[380128718,1755562241365,-480.0,0.00019178,2]
[380128720,1755562241374,-461.50661989,0.00019178,2]
[380128722,1755562241384,-460.38725175,0.00019178,2]
[380128723,1755562241393,-480.0,0.00019178,2]
[380128724,1755562241402,-480.0,0.00019178,2]
[380128725,1755562241412,-462.91874358,0.00019178,2]
[380128726,1755562241422,-480.0,0.00019178,2]
[380128727,1755562241432,-1174.09,0.00019178,2]
[380128728,1755562241442,-491.33,0.00019178,2]
[380128729,1755562241451,-1576.02,0.00019178,2]
[380128730,1755562241461,-2022.32,0.00019178,2]
[380128731,1755562241470,-480.0,0.00019178,2]
[380128732,1755562241479,-480.0,0.00019178,2]
[380128733,1755562241489,-480.0,0.00019178,2]
[380128734,1755562241499,-480.0,0.00019178,2]
[380128735,1755562241508,-480.0,0.00019178,2]
[380128736,1755562241517,-500.0,0.00019178,2]
[380128737,1755562241530,-500.0,0.00019178,2]
[380128738,1755562241539,-480.0,0.00019178,2]
[380128739,1755562241548,-500.0,0.00019178,2]
[380128740,1755562241558,-480.0,0.00019178,2]
[380128741,1755562241567,-480.0,0.00019178,2]
[380128742,1755562241576,-480.0,0.00019178,2]
[380128743,1755562241586,-480.0,0.00019178,2]
[380128744,1755562241596,-480.0,0.00019178,2]
[380128745,1755562241605,-671.27,0.00019178,2]
[380128746,1755562241614,-480.0,0.00019178,2]
[380128747,1755562241624,-480.0,0.00019178,2]
[380128748,1755562241633,-460.64618476,0.00019178,2]
[380128749,1755562241642,-1781.16,0.00019178,2]
[380128750,1755562241652,-480.0,0.00019178,2]
[380128751,1755562241662,-421.85708826,0.00019178,2]
[380128752,1755562241671,-480.0,0.00019178,2]
[380128753,1755562241681,-480.0,0.00019178,2]
[380128754,1755562241690,-480.0,0.00019178,2]
[380128755,1755562241699,-480.0,0.00019178,2]
[380128756,1755562241709,-480.0,0.00019178,2]
[380128757,1755562241718,-481.73599241,0.00019178,2]
[380128758,1755562241727,-497.37,0.00019178,2]
[380128759,1755562241736,-480.0,0.00019178,2]
[380128760,1755562241746,-549.4,0.00019178,2]
[380128761,1755562241756,-480.0,0.00019178,2]
[380128762,1755562241766,-480.0,0.00019178,2]
[380128763,1755562241775,-480.0,0.00019178,2]
[380128764,1755562241786,-500.0,0.00019178,2]
[380128765,1755562241795,-500.0,0.00019178,2]
[380128766,1755562241804,-500.0,0.00019178,2]
[380128767,1755562241813,-500.0,0.00019178,2]
[380128768,1755562241822,-500.0,0.00019178,2]
[380128769,1755562241832,-500.0,0.00019178,2]
[380128770,1755562241841,-500.0,0.00019178,2]
[380128771,1755562241850,-480.0,0.00019178,2]
[380128772,1755562241859,-480.0,0.00019178,2]
[380128773,1755562241869,-480.0,0.00019178,2]
[380128774,1755562241878,-605.86236637,0.00019178,2]
[380128775,1755562241888,-440.0,0.00019178,2]
[380128776,1755562241897,-735.04,0.00019178,2]
[380128777,1755562241906,-1792.86,0.00019178,2]
[380128778,1755562241915,-462.6116394,0.00019178,2]
[380128779,1755562241925,-552.67,0.00019178,2]
[380128780,1755562241935,-480.0,0.00019178,2]
[380128781,1755562241944,-480.0,0.00019178,2]
[380128782,1755562241953,-480.0,0.00019178,2]
[380128783,1755562241962,-480.0,0.00019178,2]
[380128784,1755562241971,-480.0,0.00019178,2]
[380128785,1755562241981,-4744.36,0.00019178,2]
[380128786,1755562241990,-460.0,0.00019178,2]
[380128787,1755562242000,-480.0,0.00019178,2]
[380128788,1755562242009,-480.0,0.00019178,2]
[380128789,1755562242018,-480.0,0.00019178,2]
[380128790,1755562242027,-400.0,0.00019178,2]
[380128791,1755562242038,-843.26,0.00019178,2]
[380128792,1755562242047,-480.0,0.00019178,2]
[380128793,1755562242057,-480.0,0.00019178,2]
[380128794,1755562242066,-675.95,0.00019178,2]
[380128795,1755562242079,-480.0,0.00019178,2]
[380128796,1755562242088,-173.79691907,0.00019178,2]
[380128797,1755562242098,-460.0,0.00019178,2]
[380128798,1755562242108,-783.99,0.00019178,2]
[380128799,1755562242119,-1548.89,0.00019178,2]
[380128800,1755562242128,-480.0,0.00019178,2]
[380128801,1755562242137,-480.0,0.00019178,2]
[380128802,1755562242147,-500.0,0.00019178,2]
[380128803,1755562242158,-1770.56066734,0.00019178,2]
[380128804,1755562242167,-666.0,0.00019178,2]
[380128805,1755562242176,-9594.8198292,0.00019178,2]
[380128806,1755562242186,-500.0,0.0001934,2]
[380128807,1755562242196,-500.0,0.00019351,2]
[380128808,1755562242205,-500.0,0.00019351,2]
[380128809,1755562242215,-500.0,0.00019351,2]
[380128810,1755562242229,-500.0,0.00019351,2]
[380128811,1755562242245,-500.0,0.00019351,2]
[380128812,1755562242255,-500.0,0.00019351,2]
[380128813,1755562242265,-500.0,0.00019351,2]
[380128814,1755562242277,-290.09,0.00019351,2]
[380128815,1755562242288,-334.33153667,0.00019399,2]
[380128816,1755562242297,-561.61,0.00019452,2]
[380128817,1755562242307,-480.0,0.00019452,2]
[380128818,1755562242316,-480.0,0.00019452,2]
[380128819,1755562242326,-480.0,0.00019452,2]
[380128820,1755562242335,-282.76811188,0.00019452,2]
[380128821,1755562242345,-465.1367722,0.00019452,2]
[380128822,1755562242353,-480.0,0.00019452,2]
[380128823,1755562242363,-480.0,0.00019452,2]
[380128824,1755562242373,-480.0,0.00019452,2]
[380128825,1755562242382,-480.0,0.00019452,2]
[380128826,1755562242392,-480.0,0.00019452,2]
[380128827,1755562242401,-1895.47,0.00019452,2]
[380128828,1755562242410,-602.38,0.00019452,2]
[380128829,1755562242420,-480.0,0.00019452,2]
[380128830,1755562242429,-480.0,0.00019452,2]
[380128831,1755562242438,-480.0,0.00019452,2]
[380128832,1755562242448,-480.0,0.00019452,2]
[380128833,1755562242457,-480.0,0.00019452,2]
[380128834,1755562242467,-480.0,0.00019452,2]
[380128835,1755562242476,-421.47963557,0.00019452,2]
[380128836,1755562242486,-492.80249767,0.00019452,2]
[380128837,1755562242495,-533.22,0.00019452,2]
[380128838,1755562242505,-480.0,0.00019452,2]
[380128839,1755562242514,-480.0,0.00019452,2]
[380128840,1755562242523,-480.0,0.00019452,2]